[Event "3rd Sunway Formentera-A 2024"]
[Site "Formentera"]
[Date "2024.04.18"]
[Round "9.7"]
[White "Prado, Alexandra"]
[Black "Akshit Kumar J"]
[Result "0-1"]
[ECO "B23"]
[WhiteElo "1839"]
[BlackElo "2172"]
[Annotator "TA"]
[PlyCount "108"]
[EventDate "2024.04.03"]
[EventType "swiss"]
[EventCountry "ESP"]
[SourceTitle "playchess.com"]
[Source "ChessBase"]
[SourceQuality "1"]
[TimeControl "40/5400+30:1800+30"]

{[%evp 9,108,21,33,7,22,7,23,24,24,13,20,15,13,0,0,-34,-16,-25,0,12,56,50,63,43,63,43,72,0,0,0,0,0,8,16,109,62,74,65,77,0,64,-2,-3,0,0,0,0,-77,-77,-68,-72,-77,-83,-87,-88,-93,-88,-105,-111,-193,-166,-166,-178,-314,-302,-337,-312,-305,-120,-147,-138,-144,-119,-147,-133,-309,-278,-301,-231,-381,-446,-410,-384,-464,-431,-416,-417,-757,-735,-809,-757,-1409,-1288,-5933,-5422,-29980,-29981,-29986,-29987,-29987,-29988]} 1. e4 {[%emt 0:05:59]} c5 {[%emt 0:00:08]} 2. Nc3 {[%emt 0:00:05]} Nc6 {[%emt 0:00:05]} 3. Bb5 {[%emt 0:00:04]} Nd4 {[%emt 0:00:26]} 4. Bc4 {[%emt 0:00:07]} g6 {[%emt 0:03:07]} 5. Nge2 {[%emt 0:09:25]} Bg7 {[%emt 0:00:38]} 6. d3 {[%emt 0:00:55]} (6. Nxd4 $5 cxd4 7. Qf3 $15) 6... a6 {[%emt 0:03:04]} 7. a4 {[%emt 0:00:37]} e6 {[%emt 0:00:42]} 8. O-O {[%emt 0:01:40] White has an edge.} Ne7 {[%emt 0:01:04][%cal Bg8e7,Be7d5,Bd5b6,Bb6d7,Bd7c5,Bc5e4][%mdl 32]} 9. Nxd4 {[%emt 0:00:22]} cxd4 {[%emt 0:01:37]} 10. Ne2 {[%emt 0:07:05]} d5 {[%emt 0:05:12]} 11. exd5 {[%emt 0:12:28]} Nxd5 {[%emt 0:00:46]} 12. Nf4 {[%emt 0:03:49]} Nb6 {[%emt 0:09:42]} 13. Bb3 {[%emt 0:01:07]} e5 {[%emt 0:00:57]} 14. a5 {[%emt 0:08:12]} Nd7 {[%emt 0:00:19]} (14... O-O $5) 15. Nd5 {[%emt 0:01:43][%cal Oc1g5]} O-O {[%emt 0:05:25]} 16. f4 {[%emt 0:10:40]} Nc5 {[%emt 0:22:58] Strongly threatening ...Nxb3.} 17. Bc4 {[%emt 0:02:34]} e4 {[%emt 0:05:26]} 18. dxe4 {[%emt 0:00:12]} (18. b3 $16) 18... Nxe4 $11 {[%emt 0:02:52]} 19. Nb6 {[%emt 0:03:01]} Rb8 {[%emt 0:05:03][%cal Od4d3]} 20. Qf3 {[%emt 0:07:56]} Re8 {[%emt 0:04:09][%cal Od4d3]} 21. f5 {[%emt 0:08:20]} gxf5 {[%emt 0:11:26]} (21... Bxf5 $11 22. Bf4 Be5) 22. Nxc8 {[%emt 0:04:37]} (22. Bf4 $16 Be6 23. Bd3) 22... Rxc8 $14 {[%emt 0:02:44]} 23. Qxf5 $1 {[%emt 0:01:47]} Nd6 {[%emt 0:00:20]} 24. Bxf7+ {[%emt 0:00:12] This pair of bishops is nice.} ({White should play} 24. Qg4 $1 $16 {[%cal Oc1h6] White threatens Bh6! and mate.} Re4 (24... Rxc4 25. Bh6) 25. Bxf7+ Kh8 26. Qf3) 24... Kh8 {[%emt 0:00:11]} (24... Nxf7 $11 25. Qxf7+ Kh8) 25. Qd3 {[%emt 0:05:59]} (25. Qg4 $1 $14 Re4 (25... Nxf7 26. Rxf7 Rg8 27. Bg5 $18) 26. Qf3) 25... Nxf7 $11 {[%emt 0:00:40]} 26. Rxf7 {[%emt 0:00:14][%cal Oc1h6]} Re1+ {[%emt 0:00:45]} 27. Rf1 {[%emt 0:00:11]} (27. Kf2 {looks sharper.} Rh1 28. Bg5 Qg8 29. Rxg7 Qf8+ 30. Kg3) 27... Rxf1+ {[%emt 0:00:19]} 28. Kxf1 {[%emt 0:00:34]} (28. Qxf1 $11 Rxc2 29. Qd3) 28... Qc7 $36 {[%emt 0:00:10][%csl LRc2,LRh2][%mdl 2048] Keeping White busy.} 29. Kg1 {[%emt 0:02:54]} Qxc2 {[%emt 0:00:10]} 30. Qxc2 {[%emt 0:01:48]} Rxc2 $15 {[%emt 0:00:07][%mdl 4096] Endgame. KRB-KRB} 31. Bf4 {[%emt 0:00:40]} Rxb2 {[%emt 0:02:38] Black is more active.} 32. Rc1 {[%emt 0:00:21] White wants to mate with Rc8+.} Kg8 {[%emt 0:02:05]} 33. Rc8+ {[%emt 0:00:31]} Kf7 {[%emt 0:00:09]} 34. g4 {[%emt 0:00:41]} (34. Rc7+ $17 {is a better defense.} Kg6 35. g4) 34... Ke6 {[%emt 0:03:40]} 35. Kf1 {[%emt 0:00:13]} Bf6 {[%emt 0:01:25] White must now prevent ...d3.} 36. g5 {[%emt 0:00:23]} (36. Re8+ {was worth a try.} Kd7 37. Re1) 36... Be7 $19 {[%emt 0:00:17]} 37. h4 {[%emt 0:00:41]} Kf5 {[%emt 0:01:29]} 38. Rc7 {[%emt 0:00:38]} Bd8 $2 {[%emt 0:04:10]} (38... Bb4 $19 {and Black stays clearly on top.} 39. Bc1 Rb1) 39. Rf7+ $17 {[%emt 0:00:16]} Kg6 $1 {[%emt 0:02:53]} 40. Rd7 {[%emt 0:00:00]} Bxa5 {[%emt 0:00:00] And now ...Kf5 would win.} 41. Rxd4 {[%emt 0:02:18]} Bc3 $1 {[%emt 0:10:02]} 42. Rd6+ {[%emt 0:05:19] This costs White the game.} (42. Rd3 $17 Rc2 43. Bc7) 42... Kf5 $19 {[%emt 0:01:09]} 43. Bg3 {[%emt 0:00:28]} Kg4 {[%emt 0:02:52]} 44. Bf2 {[%emt 0:00:34]} (44. g6 $142 Kxg3 45. Rd3+ Kxh4 46. gxh7) 44... Rd2 {[%emt 0:00:35]} 45. Re6 {[%emt 0:03:38]} b5 $1 {[%emt 0:01:52]} 46. g6 {[%emt 0:02:24] [#]} hxg6 $1 {[%emt 0:10:04]} 47. Rxg6+ {[%emt 0:00:15] [#]} Kf4 $1 {[%emt 0:00:04] aiming for ...b4.} 48. Rg8 {[%emt 0:09:33]} (48. Re6 $142 Ra2 49. Re2 Ra1+ 50. Kg2) 48... b4 {[%emt 0:01:42] Threatens to win with ...b3.} 49. Rf8+ {[%emt 0:00:34]} Ke4 {[%emt 0:00:12] ...b3 would now be deadly.} 50. Re8+ {[%emt 0:00:19]} Kd3 {[%emt 0:00:44]} 51. h5 {[%emt 0:02:47]} b3 {[%emt 0:00:27]} 52. Re3+ {[%emt 0:00:45]} Kc2 {[%emt 0:02:29] Black mates.} 53. Be1 {[%emt 0:06:23]} b2 {[%emt 0:00:25]} 54. Bxd2 {[%emt 0:00:48]} Bxd2 {[%emt 0:00:08] Weighted Error Value: White=0.61/Black=0.14 (very precise) .  Loses game:     	White=1     	---        Missed win:     	---       	Black=1      Mistake:       	White=9     	Black=2      Inaccurate:     	White=1     	Black=2      OK:         	White=14    	Black=16     Best:        	White=1     	Black=6      Strong:       	White=1     	Black=4} (54... b1=B $2 {is the wrong capture.} 55. Bxc3 Kb3 56. Be1+ Kc4 57. h6 $18) 0-1

[Event "3rd Sunway Formentera-A 2024"]
[Site "Formentera"]
[Date "2024.04.18"]
[Round "9.8"]
[White "Botez, Alexandra"]
[Black "Schulman, Julia"]
[Result "1-0"]
[ECO "A58"]
[WhiteElo "1970"]
[BlackElo "1732"]
[Annotator "TA"]
[PlyCount "119"]
[EventDate "2024.04.03"]
[EventType "swiss"]
[EventCountry "ESP"]
[SourceTitle "playchess.com"]
[Source "ChessBase"]
[SourceQuality "1"]
[TimeControl "40/5400+30:1800+30"]

{[%evp 9,119,18,37,35,39,33,58,73,60,64,62,50,82,84,97,81,119,99,102,110,111,116,133,96,147,147,147,147,147,110,108,111,113,108,109,114,143,107,156,173,201,200,219,176,287,290,272,200,249,242,229,200,249,242,297,312,291,311,300,308,378,312,414,400,397,339,508,493,464,429,421,411,499,489,504,399,518,512,722,636,697,620,671,679,760,742,1427,1216,4797,4797,5651,5135,29963,29942,6135,5812,29978,29979,29979,29980,29980,29981,29981,29982,29983,29984,29985,29983,29983,29984,29984,29985]} 1. d4 {[%emt 0:00:06]} Nf6 {[%emt 0:00:06]} 2. c4 {[%emt 0:00:08]} c5 {[%emt 0:00:10]} 3. d5 {[%emt 0:00:12]} b5 {[%emt 0:00:08]} 4. cxb5 {[%emt 0:00:06]} a6 {[%emt 0:00:06]} 5. bxa6 {[%emt 0:00:06]} g6 {[%emt 0:00:28][%cal Of8g7]} 6. a7 {[%emt 0:00:28]} Rxa7 {[%emt 1:32:32]} 7. Nc3 {[%emt 0:00:50]} d6 {[%emt 0:00:00]} 8. e4 {[%emt 0:00:54] White is slightly better.} Bg7 {[%emt 0:00:00]} 9. Nf3 {[%emt 0:00:42]} O-O {[%emt 0:00:00]} 10. Be2 {[%emt 0:00:31]} Nbd7 {[%emt 0:00:00]} 11. O-O {[%emt 0:00:11]} Ra8 {[%emt 0:00:00]} 12. a4 {[%emt 0:00:51]} Ng4 {[%emt 0:00:00]} 13. Qc2 {[%emt 0:00:50]} Nge5 {[%emt 0:00:00]} 14. Nxe5 {[%emt 0:00:24]} Nxe5 {[%emt 0:00:00]} 15. Nb5 {[%emt 0:01:27]} Ba6 {[%emt 0:00:00]} 16. Bd2 {[%emt 0:01:02]} Qb6 {[%emt 0:00:00]} (16... c4 $142) 17. Rab1 $16 {[%emt 0:04:30]} Rfc8 {[%emt 0:00:00]} 18. Be3 {[%emt 0:00:22]} Qa5 {[%emt 0:00:00]} 19. f4 {[%emt 0:00:26]} Bxb5 {[%emt 0:00:00]} 20. Bxb5 {[%emt 0:01:19]} Ng4 {[%emt 0:00:00]} 21. Bd2 {[%emt 0:02:00]} Bd4+ {[%emt 0:00:00]} 22. Kh1 {[%emt 0:00:11]} Qb6 {[%emt 0:00:00]} 23. h3 {[%emt 0:00:11]} Nf6 {[%emt 0:00:00]} ({Black should play} 23... Ne3 24. Bxe3 Bxe3) 24. b3 $36 {[%emt 0:00:44][%mdl 2048] Black is under strong pressure.} Nh5 {[%emt 0:00:00]} 25. Rf3 {[%emt 0:02:03] Prevents Ng3+.} Qd8 {[%emt 0:00:00]} 26. Bc3 {[%emt 0:01:47]} Nf6 {[%emt 0:00:00]} (26... Bxc3 $142 27. Qxc3 Rcb8) 27. Bxd4 $18 {[%emt 0:01:07]} cxd4 {[%emt 0:00:00]} 28. Bc4 {[%emt 0:00:10]} Qb6 {[%emt 0:00:00]} 29. Qd3 {[%emt 0:00:29]} Qb4 {[%emt 0:00:00]} 30. Rc1 {[%emt 0:06:54]} Qc5 {[%emt 0:00:00]} 31. Rd1 {[%emt 0:01:14]} Nd7 {[%emt 0:00:00]} 32. Qxd4 {[%emt 0:00:12]} Qxd4 {[%emt 0:00:00]} 33. Rxd4 {[%emt 0:00:08]} Nc5 {[%emt 0:00:00]} 34. Bb5 {[%emt 0:00:41]} Rcb8 {[%emt 0:00:00]} 35. e5 {[%emt 0:05:06]} Kg7 {[%emt 0:02:45]} 36. exd6 {[%emt 0:00:14]} exd6 {[%emt 0:00:05]} 37. f5 {[%emt 0:00:17]} h5 {[%emt 0:03:57]} (37... g5 $142 38. Bc6 Ra5) 38. fxg6 {[%emt 0:00:12]} fxg6 {[%emt 0:00:07]} 39. Rdf4 {[%emt 0:00:16]} Ra7 {[%emt 0:01:07]} 40. h4 {[%emt 0:00:00]} Re7 {[%emt 0:00:00]} 41. Kh2 {[%emt 0:00:53]} Re5 {[%emt 0:01:39]} 42. Rf7+ {[%emt 0:01:40]} Kg8 {[%emt 0:00:13]} 43. Rc7 {[%emt 0:00:39]} Rf8 {[%emt 0:01:45]} 44. Rxf8+ {[%emt 0:00:16]} Kxf8 {[%emt 0:00:03][%mdl 4096] Endgame. KRB-KRN} 45. Bc4 {[%emt 0:00:16]} Re4 {[%emt 0:01:21]} 46. g3 {[%emt 0:00:28]} Re3 {[%emt 0:06:57]} 47. a5 {[%emt 0:01:19][%cal Ba4a5,Ba5a6][%mdl 32] [#] b4 is the strong threat.} Re8 {[%emt 0:13:00]} 48. a6 {[%emt 0:00:35]} Ra8 {[%emt 0:01:57]} 49. a7 {[%emt 0:00:18]} Ke8 {[%emt 0:00:11]} 50. Rh7 {[%emt 0:00:13] White threatens Rh8+ and mate.} Nd7 {[%emt 0:00:44]} 51. Bb5 {[%emt 0:03:05]} (51. Rh8+ Nf8 $16) 51... Rxa7 {[%emt 0:00:16]} 52. Rxd7 {[%emt 0:00:11]} Rxd7 {[%emt 0:00:07] KR-KB} 53. g4 {[%emt 0:00:09] White mates.} Ke7 {[%emt 0:01:51]} 54. Bxd7 {[%emt 0:00:05]} Kxd7 {[%emt 0:00:03]} 55. gxh5 {[%emt 0:00:07]} gxh5 {[%emt 0:00:06] K3P-KPP} 56. Kg3 {[%emt 0:00:03]} Kc7 {[%emt 0:00:58]} 57. Kf4 {[%emt 0:00:05]} Kb6 {[%emt 0:00:07]} 58. Kg5 {[%emt 0:00:28]} Kc5 {[%emt 0:00:06]} 59. Kxh5 {[%emt 0:00:05]} Kxd5 {[%emt 0:00:03]} 60. Kg6 {[%emt 1:40:14] Weighted Error Value: White=0.19 (very precise) /Black=0.35.  Mistake:       	---       	Black=4      Inaccurate:     	---       	Black=4      OK:         	White=14    	Black=7      Best:        	White=1     	---} 1-0

[Event "3rd Sunway Formentera-A 2024"]
[Site "Formentera"]
[Date "2024.04.18"]
[Round "9.9"]
[White "Sosa, Tomas"]
[Black "Song, Yuxin"]
[Result "0-1"]
[ECO "B51"]
[WhiteElo "2562"]
[BlackElo "2379"]
[Annotator "TA"]
[PlyCount "62"]
[EventDate "2024.04.03"]
[EventType "swiss"]
[EventCountry "ESP"]
[SourceTitle "playchess.com"]
[Source "ChessBase"]
[SourceQuality "1"]
[TimeControl "40/5400+30:1800+30"]

{[%evp 10,62,11,0,18,18,15,4,17,1,0,0,20,8,23,0,0,-59,-61,-50,-75,-100,-82,-91,-87,-139,-106,-95,-97,-101,-84,-187,-168,-247,-215,-249,-231,-698,-383,-354,-360,-367,-377,-361,-351,-647,-237,-660,-662,-674,-668,-685,-686,-656,-666]} 1. e4 {[%emt 0:00:03]} c5 {[%emt 0:00:06]} 2. Nf3 {[%emt 0:00:10]} d6 {[%emt 0:00:06]} 3. Bb5+ {[%emt 0:00:27]} Nd7 {[%emt 0:00:11]} 4. c3 {[%emt 0:01:43]} Ngf6 {[%emt 0:01:59]} 5. Qe2 {[%emt 0:00:26]} a6 {[%emt 0:00:35]} 6. Ba4 {[%emt 0:00:15]} e6 {[%emt 0:00:31]} 7. Bc2 {[%emt 0:01:52]} b5 {[%emt 0:02:18]} 8. a4 {[%emt 0:03:18]} Bb7 {[%emt 0:00:56] The position is equal.} 9. d4 {[%emt 0:03:04]} cxd4 {[%emt 0:12:55]} 10. cxd4 {[%emt 0:00:44]} Be7 {[%emt 0:00:27]} 11. O-O {[%emt 0:03:02]} O-O {[%emt 0:05:07]} 12. Nbd2 {[%emt 0:00:59][%cal Bb1d2,Bd2e4,Be4g5][%mdl 32]} bxa4 {[%emt 0:03:34]} 13. e5 {[%emt 0:10:56]} (13. Rxa4 $11 a5 14. Bd3) 13... dxe5 $15 {[%emt 0:03:09]} 14. dxe5 {[%emt 0:03:50]} Nd5 {[%emt 0:00:07]} 15. Ne4 {[%emt 0:01:57]} Qc7 {[%emt 0:08:41]} 16. Neg5 {[%emt 0:16:13] [#]} g6 $1 {[%emt 0:00:08]} 17. Re1 {[%emt 0:08:49]} ({White should try} 17. Bxa4 Nc5 18. Ne4) 17... Rfc8 {[%emt 0:05:26]} 18. Bxa4 {[%emt 0:14:40]} Nc5 {[%emt 0:00:34] Against Qe4. aiming for ...Nxa4.} 19. Bd2 {[%emt 0:08:14]} Qb6 {[%emt 0:06:54][%cal Oa6a5]} 20. Bc2 {[%emt 0:10:14]} (20. Ne4 $17 {was called for.}) 20... Qxb2 $19 {[%emt 0:06:38]} 21. Ba5 {[%emt 0:00:22]} (21. Rec1 $142) 21... Nf4 {[%emt 0:08:18]} 22. Qd2 {[%emt 0:01:41] [#]} Ncd3 {[%emt 0:02:02]} 23. Reb1 $2 {[%emt 0:04:59]} (23. Bxd3 Qxd2 24. Bxd2 Nxd3 25. Re3) 23... Qxc2 {[%emt 0:05:50]} 24. Rxb7 {[%emt 0:00:08]} Bxg5 {[%emt 0:00:08]} 25. Qxc2 {[%emt 0:00:04]} Rxc2 {[%emt 0:00:09]} 26. Nxg5 {[%emt 0:00:03]} Rxf2 {[%emt 0:00:34]} ({Don't do} 26... Nxf2 27. Rc7 Rxc7 (27... N2h3+ 28. Nxh3 Rxg2+ 29. Kh1 $16) 28. Bxc7 $19) 27. Ne4 $2 {[%emt 0:02:19]} (27. g3 Rg2+ 28. Kf1 Rxh2 (28... Nxe5 29. gxf4 Rxh2 30. Bc3 $18) 29. Bb6 Rh1+ 30. Bg1) 27... Ne2+ {[%emt 0:00:40]} 28. Kh1 {[%emt 0:00:09]} Rf4 {[%emt 0:00:12] Black is clearly winning.} 29. Rd1 {[%emt 0:03:02]} Rxe4 {[%emt 0:01:34]} 30. Rxd3 {[%emt 0:00:07]} Ra4 {[%emt 0:00:04] ( -> ...Ra1+)} 31. Be1 {[%emt 0:01:08]} Ra1 {[%emt 0:00:03] Prevents Rd1.   Weighted Error Value: White=0.49/Black=0.12 (very precise) .  Mistake:       	White=6     	---        Inaccurate:     	White=1     	Black=1      OK:         	White=4     	Black=14     Best:        	White=3     	Black=2      Strong:       	---       	Black=1} 0-1

[Event "3rd Sunway Formentera-A 2024"]
[Site "Formentera"]
[Date "2024.04.18"]
[Round "9.10"]
[White "Kazarian, Anna-Maja"]
[Black "Manish Anto Cristiano F"]
[Result "1/2-1/2"]
[ECO "E12"]
[WhiteElo "2207"]
[BlackElo "2293"]
[Annotator "TA"]
[PlyCount "88"]
[EventDate "2024.04.03"]
[EventType "swiss"]
[EventCountry "ESP"]
[SourceTitle "playchess.com"]
[Source "ChessBase"]
[SourceQuality "1"]
[TimeControl "40/5400+30:1800+30"]

{[%evp 23,88,7,8,0,12,6,0,-8,-10,-19,-18,-16,0,-9,-9,0,-2,-11,8,0,11,33,32,16,29,36,22,0,0,0,-4,-10,130,16,31,0,0,0,0,0,0,0,0,0,0,-6,14,19,19,19,19,19,19,19,19,19,19,8,8,0,19,19,19,19,19,19,19]} 1. d4 {[%emt 0:00:18]} Nf6 {[%emt 0:00:20]} 2. c4 {[%emt 0:00:10]} e6 {[%emt 0:00:10]} 3. Nf3 {[%emt 0:00:06]} d5 {[%emt 0:01:04]} 4. Nc3 {[%emt 0:00:07]} Be7 {[%emt 0:02:22]} 5. Bg5 {[%emt 0:01:50]} O-O {[%emt 0:00:12]} 6. e3 {[%emt 0:00:55]} b6 {[%emt 0:00:47]} 7. Bd3 {[%emt 0:02:57]} dxc4 {[%emt 0:01:09]} 8. Bxc4 {[%emt 0:00:06]} Bb7 {[%emt 0:00:07]} 9. O-O {[%emt 0:12:18]} Nbd7 {[%emt 0:00:52]} 10. Qe2 {[%emt 0:00:37]} Ne4 {[%emt 0:13:51]} 11. Bxe7 {[%emt 0:10:00]} Nxc3 {[%emt 0:05:47]} 12. bxc3 {[%emt 0:14:41]} Qxe7 {[%emt 0:00:11]} 13. Ba6 {[%emt 0:03:45]} Bxa6 {[%emt 0:03:43]} 14. Qxa6 {[%emt 0:00:05]} c5 {[%emt 0:00:45]} 15. Qb7 {[%emt 0:04:02]} Rfb8 {[%emt 0:01:38]} 16. Qc7 {[%emt 0:01:06] [#] Black must now prevent Ne5.} Rc8 {[%emt 0:00:43]} 17. Qb7 {[%emt 0:00:43]} Kf8 {[%emt 0:02:36]} 18. a4 {[%emt 0:05:23]} Nf6 {[%emt 0:04:17]} 19. Qa6 {[%emt 0:00:44]} Rab8 {[%emt 0:05:00]} 20. Ne5 {[%emt 0:07:20]} Nd5 {[%emt 0:05:24]} 21. Qd3 {[%emt 0:01:20]} g6 {[%emt 0:05:47]} 22. e4 {[%emt 0:02:44]} Nf6 {[%emt 0:44:45]} 23. f4 {[%emt 0:30:43]} cxd4 {[%emt 0:00:00]} 24. cxd4 {[%emt 0:00:00]} Nd7 {[%emt 0:00:00]} 25. Qh3 {[%emt 0:00:00]} Kg8 {[%emt 0:00:00]} 26. Nf3 {[%emt 0:00:00][%cal Be5f3,Bf3g5,Bg5h7][%mdl 32]} Rc3 {[%emt 0:00:00]} 27. f5 {[%emt 0:00:00]} Qf6 {[%emt 0:00:00]} (27... exf5 $11 28. exf5 Re8) 28. fxe6 {[%emt 0:00:00]} ({White should play} 28. e5 $16 Qe7 (28... Qxf5 $2 29. Qh4 $18) 29. fxe6 fxe6 30. Rfd1) 28... Qxe6 $11 {[%emt 0:00:00]} 29. Qh6 {[%emt 0:00:35] Ng5 would now be deadly.} Qxe4 {[%emt 0:00:00] The position is equal.} 30. Rae1 {[%emt 0:00:02]} Qd5 {[%emt 0:00:00]} 31. Ng5 {[%emt 0:00:59]} Qxd4+ {[%emt 0:00:00]} 32. Kh1 {[%emt 0:00:03]} Nf6 {[%emt 0:00:00]} 33. Nxh7 {[%emt 0:02:44]} Ng4 {[%emt 0:00:00]} (33... Nxh7 $2 34. Rxf7 Nf8 35. Ref1 $18 (35. Rxa7 $2 {too greedy.} Ra3 $19)) 34. Qh4 $132 {[%emt 0:00:12][%mdl 2048] [#] Nf6+ is the strong threat. White has counterplay. The board is on fire.} Nf2+ $1 {[%emt 0:00:00]} 35. Qxf2 {[%emt 0:00:04]} Qxf2 {[%emt 0:00:00]} 36. Rxf2 {[%emt 0:00:01]} Kxh7 {[%emt 0:00:00]} 37. Rxf7+ {[%emt 0:00:02][%mdl 4096] Endgame. KRR-KRR} Kh6 {[%emt 0:00:00][%cal Ob8e8]} 38. Rxa7 {[%emt 0:00:04]} Re8 {[%emt 0:00:00]} 39. Rg1 {[%emt 0:00:41]} (39. Rxe8 $2 {gets mated.} Rc1+) 39... Re4 {[%emt 0:00:25]} 40. h3 {[%emt 0:00:00]} Ra3 {[%emt 0:00:00]} 41. Rb1 {[%emt 0:09:52]} Ra2 {[%emt 0:03:43]} 42. Rb3 {[%emt 0:01:46]} b5 {[%emt 0:06:31]} 43. a5 {[%emt 0:01:36]} b4 {[%emt 0:00:19]} 44. Rb7 {[%emt 0:02:17]} Rxa5 {[%emt 0:01:44] Weighted Error Value: White=0.11 (very precise) /Black=0.09 (flawless) .  Mistake:       	White=1     	Black=1      Inaccurate:     	White=1     	---        OK:         	White=13    	Black=18     Best:        	White=2     	Black=2} 1/2-1/2

[Event "3rd Sunway Formentera-A 2024"]
[Site "Formentera"]
[Date "2024.04.18"]
[Round "9.11"]
[White "Botez, Andrea"]
[Black "Weidenhoefer, Max"]
[Result "0-1"]
[ECO "D00"]
[WhiteElo "1879"]
[BlackElo "2134"]
[Annotator "TA"]
[PlyCount "86"]
[EventDate "2024.04.03"]
[EventType "swiss"]
[EventCountry "ESP"]
[SourceTitle "playchess.com"]
[Source "ChessBase"]
[SourceQuality "1"]
[TimeControl "40/5400+30:1800+30"]

{[%evp 9,86,-33,-16,-29,-31,-33,-31,-25,-12,-11,-31,-16,-4,-11,-9,-10,3,-36,-19,-57,-45,-68,-18,-22,-18,-56,-58,-80,-56,-117,-105,-110,-104,-285,-286,-263,-277,-431,-419,-415,-414,-530,-329,-341,-342,-322,-322,-864,-348,-361,-221,-210,-232,-210,-207,-209,-227,-203,-203,-203,-203,-203,-203,-203,-217,-253,-236,-262,-262,-262,-262,-262,-262,-305,-219,-198,-201,-1244,-1212]} 1. d4 {[%emt 0:00:04]} d5 {[%emt 0:00:07]} 2. Nc3 {[%emt 0:00:06]} Nf6 {[%emt 0:00:07]} 3. Bf4 {[%emt 0:00:07]} e6 {[%emt 0:00:05]} 4. e3 {[%emt 0:00:10]} Bb4 {[%emt 0:00:07]} 5. Bd3 {[%emt 0:00:10]} c5 {[%emt 0:00:07]} 6. dxc5 {[%emt 0:00:02]} Nbd7 {[%emt 0:00:05][%cal Oe6e5]} 7. Nf3 {[%emt 0:00:16]} Bxc3+ {[%emt 0:00:09]} 8. bxc3 {[%emt 0:00:04] Black is slightly better.} Nxc5 {[%emt 0:00:07]} 9. O-O {[%emt 0:00:07]} O-O {[%emt 0:00:04]} 10. Bg5 {[%emt 0:00:10]} Ncd7 {[%emt 0:31:17] Inhibits Ne5.} 11. c4 {[%emt 0:00:59]} dxc4 {[%emt 0:05:46]} 12. Bxc4 {[%emt 0:00:07]} Qc7 {[%emt 0:00:07]} 13. Qe2 {[%emt 0:01:47]} b6 {[%emt 0:04:17]} 14. e4 {[%emt 0:36:27]} Bb7 {[%emt 0:03:02]} 15. Nd2 {[%emt 0:07:01]} Rac8 {[%emt 0:03:08]} ({Better is} 15... Qe5 $15 16. Bxf6 Qxf6 (16... Nxf6 17. Bd3 $15)) 16. f3 $11 {[%emt 0:03:50]} h6 {[%emt 0:05:33]} 17. Bh4 {[%emt 0:02:09]} Nh5 {[%emt 0:06:31]} 18. Qe3 {[%emt 0:04:57]} Ne5 {[%emt 0:04:58]} 19. Be2 {[%emt 0:09:57]} ({White should try} 19. Bd3 $15) 19... Ng6 {[%emt 0:02:56]} 20. Bf2 {[%emt 0:02:05]} Qxc2 {[%emt 0:00:14] Black is more active.} 21. Rfc1 $2 {[%emt 0:10:45] White does not recover from this.} Qxc1+ $19 {[%emt 0:09:13]} 22. Rxc1 {[%emt 0:00:05]} Rxc1+ {[%emt 0:00:04]} 23. Nf1 {[%emt 0:00:15] [#]} (23. Bf1 $142 Nhf4 24. h3) 23... Nhf4 $1 {[%emt 0:05:22]} 24. Bb5 {[%emt 0:02:57]} Rfc8 {[%emt 0:01:57]} 25. Be1 {[%emt 0:07:56] Repels R8c3} Ra1 {[%emt 0:07:30]} 26. g3 {[%emt 0:01:50]} Nh3+ {[%emt 0:01:18]} 27. Kg2 {[%emt 0:00:07]} Ng5 {[%emt 0:00:10]} (27... Rxa2+ 28. Kxh3 Rc5 29. Be2 $11) 28. Qd2 {[%emt 0:04:10] Prevents Rc2} (28. h4 Rxa2+ 29. Nd2) 28... Rac1 {[%emt 0:03:38]} (28... Ne5 $142 29. Be2 f5) 29. Ne3 {[%emt 0:01:07] [#]} f5 $1 {[%emt 0:02:53] And now ...Ne5 would win.} 30. h4 {[%emt 0:04:43] [#]} Nxf3 {[%emt 0:01:09][%mdl 512]} 31. Kxf3 {[%emt 0:00:08]} Bxe4+ {[%emt 0:00:04]} 32. Ke2 {[%emt 0:00:44] [#]} R1c2 $1 {[%emt 0:00:07][%mdl 512]} 33. Nxc2 {[%emt 0:00:28]} Rxc2 {[%emt 0:00:02]} 34. Qxc2 {[%emt 0:00:25]} Bxc2 {[%emt 0:00:02][%mdl 4096] Endgame. KBB-KBN} 35. Bb4 {[%emt 0:00:56]} Be4 {[%emt 0:02:14]} 36. Bd6 {[%emt 0:00:10]} Bb7 {[%emt 0:00:10]} 37. h5 {[%emt 0:00:25]} Nf8 {[%emt 0:01:03]} 38. Be8 {[%emt 0:00:21]} Nh7 {[%emt 0:00:34]} 39. Bb8 {[%emt 0:01:08]} Nf6 {[%emt 0:00:54]} ({But not} 39... Ba6+ 40. Ke1 $17) 40. Bg6 {[%emt 0:00:00]} a6 {[%emt 0:00:00]} 41. Ke3 {[%emt 0:01:56]} Nd5+ {[%emt 0:14:30]} 42. Kd4 {[%emt 0:00:55]} Nb4 {[%emt 0:00:15] ...Nc6+ is the strong threat.} 43. a4 $2 {[%emt 0:00:52]} (43. Bc7) 43... Nc6+ {[%emt 0:00:51] Weighted Error Value: White=0.65/Black=0.38.  Loses game:     	White=1     	---        Mistake:       	White=4     	Black=2      Inaccurate:     	White=3     	Black=1      OK:         	White=15    	Black=13     Best:        	White=2     	Black=4      Brilliant:      	---       	Black=1} 0-1